[Event "360 One Wealth GP-4 2024"]
[Site "Mumbai"]
[Date "2024.03.12"]
[Round "2.12"]
[White "Aabha Milind Gavkar"]
[Black "Soni Atharv"]
[Result "0-1"]
[ECO "C02"]
[WhiteElo "1513"]
[BlackElo "1684"]
[Annotator "NA RC"]
[PlyCount "52"]
[EventDate "2024.03.10"]
[EventCountry "IND"]
[SourceTitle "playchess.com"]
[Source "ChessBase"]
[SourceQuality "1"]
[TimeControl "5400+30"]

1. e4 {[%emt 0:00:02]} e6 {[%emt 0:00:04]} 2. d4 {[%emt 0:00:13]} d5 {[%emt 0:00:02]} 3. e5 {[%emt 0:00:05]} c5 {[%emt 0:00:07]} 4. c3 {[%emt 0:00:01]} Nc6 {[%emt 0:00:07]} 5. Nf3 {[%emt 0:00:09]} Qb6 {[%emt 0:00:05]} 6. a3 {[%emt 0:03:26]} c4 {[%emt 0:00:06]} 7. Nbd2 {[%emt 0:09:00]} Na5 {[%emt 0:00:02]} 8. b3 {[%emt 0:17:53]} cxb3 {[%emt 0:02:27]} 9. Rb1 {[%emt 0:00:02]} Bd7 {[%emt 0:01:00]} 10. Nxb3 {[%emt 0:03:23]} Ba4 {[%emt 0:03:05]} 11. Nfd2 {[%emt 0:00:51]} Rc8 {[%emt 0:03:36]} 12. Qc2 {[%emt 0:16:51]} Qc7 {[%emt 0:02:43]} 13. Bb2 {[%emt 0:17:32]} Nc4 {[%emt 0:02:55]} 14. Bc1 {[%emt 0:09:22]} Ne7 {[%emt 0:19:50]} 15. Bd3 {[%emt 0:03:40]} Nc6 {[%emt 0:07:37]} 16. Qa2 {[%emt 0:10:20]} b5 {[%emt 0:02:35]} 17. O-O {[%emt 0:03:07]} Be7 {[%emt 0:01:17]} 18. f4 {[%emt 0:02:09]} O-O {[%emt 0:03:33]} 19. Rf3 {[%emt 0:00:02]} f5 {[%emt 0:02:28]} 20. Nf1 {[%emt 0:01:41]} N6a5 {[%emt 0:01:05]} 21. Nfd2 {[%emt 0:00:33]} Nxd2 {[%emt 0:00:34]} 22. Nxd2 {[%emt 0:00:02]} Qxc3 {[%emt 0:00:30]} 23. Bxb5 {[%emt 0:01:01]} Qxd4+ {[%emt 0:00:02]} 24. Kh1 {[%emt 0:00:04]} Bxb5 {[%emt 0:00:10]} 25. a4 {[%emt 0:00:45]} Bd3 {[%emt 0:01:11]} 26. Bb2 {[%emt 0:00:38]} Bxb1 {[%emt 0:00:08]} 0-1

[Event "360 One Wealth GP-4 2024"]
[Site "Mumbai"]
[Date "2024.03.12"]
[Round "2.13"]
[White "Soni Deepak R"]
[Black "Shravan Balram"]
[Result "1-0"]
[ECO "D00"]
[WhiteElo "1681"]
[BlackElo "1488"]
[Annotator "NA RC"]
[PlyCount "41"]
[EventDate "2024.03.10"]
[EventCountry "IND"]
[SourceTitle "playchess.com"]
[Source "ChessBase"]
[SourceQuality "1"]
[TimeControl "5400+30"]

1. d4 {[%emt 0:00:32]} Nf6 {[%emt 0:00:29]} 2. Bf4 {[%emt 0:00:22]} e6 {[%emt 0:00:52]} 3. e3 {[%emt 0:00:09]} d5 {[%emt 0:02:45]} 4. Nd2 {[%emt 0:00:11]} c5 {[%emt 0:02:18]} 5. c3 {[%emt 0:00:08]} Qb6 {[%emt 0:03:31]} 6. Rb1 {[%emt 0:01:45]} h6 {[%emt 0:03:25]} 7. Ngf3 {[%emt 0:04:51]} c4 {[%emt 0:07:21]} 8. Ne5 {[%emt 0:00:52]} Bd6 {[%emt 0:03:03]} 9. Nexc4 {[%emt 0:00:36]} dxc4 {[%emt 0:01:38]} 10. Nxc4 {[%emt 0:00:11]} Qc6 {[%emt 0:00:21]} 11. Nxd6+ {[%emt 0:00:21]} Ke7 {[%emt 0:01:23]} 12. Qb3 {[%emt 0:03:35]} Ne4 {[%emt 0:01:30]} 13. Bb5 {[%emt 0:00:42]} Nd2 {[%emt 0:02:21]} 14. Kxd2 {[%emt 0:00:52]} Qxg2 {[%emt 0:00:10]} 15. Bg3 {[%emt 0:00:45]} Nc6 {[%emt 0:01:53]} 16. Qa3 {[%emt 0:00:39]} Kf6 {[%emt 0:01:22]} 17. Qc5 {[%emt 0:02:31]} a6 {[%emt 0:01:14]} 18. Be5+ {[%emt 0:00:53]} Nxe5 {[%emt 0:00:28]} 19. dxe5+ {[%emt 0:00:02]} Ke7 {[%emt 0:01:14]} 20. Qc7+ {[%emt 0:00:11]} Kf8 {[%emt 0:00:25]} 21. Qxf7# {[%emt 0:00:03]} 1-0

[Event "360 One Wealth GP-4 2024"]
[Site "Mumbai"]
[Date "2024.03.12"]
[Round "2.14"]
[White "Nova Ayer Juyal"]
[Black "Butala Krish"]
[Result "0-1"]
[ECO "C55"]
[WhiteElo "1486"]
[BlackElo "1659"]
[Annotator "NA RC"]
[PlyCount "68"]
[EventDate "2024.03.10"]
[EventCountry "IND"]
[SourceTitle "playchess.com"]
[Source "ChessBase"]
[SourceQuality "1"]
[TimeControl "5400+30"]

1. e4 {[%emt 0:04:58]} e5 {[%emt 0:00:12]} 2. Nf3 {[%emt 0:00:05]} Nc6 {[%emt 0:00:10]} 3. Bc4 {[%emt 0:00:04]} Nf6 {[%emt 0:00:27]} 4. O-O {[%emt 0:00:07]} Be7 {[%emt 0:00:42]} 5. Re1 {[%emt 0:01:22]} d6 {[%emt 0:00:41]} 6. h3 {[%emt 0:00:07]} Be6 {[%emt 0:04:44]} 7. Bb3 {[%emt 0:00:11]} Qd7 {[%emt 0:02:55]} 8. d4 {[%emt 0:02:39]} exd4 {[%emt 0:00:58]} 9. Ba4 {[%emt 0:07:15]} a6 {[%emt 0:05:38]} 10. Bxc6 {[%emt 0:02:06]} Qxc6 {[%emt 0:01:34]} 11. Nxd4 {[%emt 0:00:16]} Qb6 {[%emt 0:02:27]} 12. b3 {[%emt 0:03:43]} c5 {[%emt 0:03:20]} 13. Nf3 {[%emt 0:00:55]} O-O-O {[%emt 0:02:21]} 14. Nc3 {[%emt 0:01:37]} d5 {[%emt 0:03:58]} 15. Qe2 {[%emt 0:07:31]} dxe4 {[%emt 0:11:13]} 16. Nxe4 {[%emt 0:01:16]} Nxe4 {[%emt 0:00:38]} 17. Qxe4 {[%emt 0:00:28]} Bf6 {[%emt 0:00:04]} 18. Ne5 {[%emt 0:05:26]} Rd4 {[%emt 0:08:07]} 19. Qe2 {[%emt 0:01:11]} Rhd8 {[%emt 0:07:15]} 20. Bb2 {[%emt 0:05:25]} Rd2 {[%emt 0:03:46]} 21. Nc4 {[%emt 0:02:45]} Bxc4 {[%emt 0:00:38]} 22. Qxc4 {[%emt 0:00:56]} Bxb2 {[%emt 0:00:14]} 23. Qg4+ {[%emt 0:00:33]} Kb8 {[%emt 0:00:48]} 24. Rad1 {[%emt 0:01:01]} Qf6 {[%emt 0:02:16]} 25. Rxd2 {[%emt 0:01:11]} Rxd2 {[%emt 0:00:06]} 26. Re8+ {[%emt 0:01:41]} Rd8 {[%emt 0:01:03]} 27. Rxd8+ {[%emt 0:01:22]} Qxd8 {[%emt 0:00:04]} 28. Qf4+ {[%emt 0:00:17]} Qc7 {[%emt 0:00:05]} 29. Qe4 {[%emt 0:00:32]} g6 {[%emt 0:00:44]} 30. Qe8+ {[%emt 0:00:23]} Ka7 {[%emt 0:00:07]} 31. Qe1 {[%emt 0:01:52]} Qe5 {[%emt 0:00:52]} 32. Qb1 {[%emt 0:03:08]} Bc3 {[%emt 0:00:37]} 33. Kf1 {[%emt 0:00:19]} Qh2 {[%emt 0:00:14]} 34. Ke2 {[%emt 0:00:21]} Qxg2 {[%emt 0:00:19]} 0-1

[Event "360 One Wealth GP-4 2024"]
[Site "Mumbai"]
[Date "2024.03.12"]
[Round "2.15"]
[White "Pawar Sohum"]
[Black "Sriharsh Shibu Nair"]
[Result "1-0"]
[ECO "B99"]
[WhiteElo "1657"]
[BlackElo "1455"]
[Annotator "NA RC"]
[PlyCount "69"]
[EventDate "2024.03.10"]
[EventCountry "IND"]
[SourceTitle "playchess.com"]
[Source "ChessBase"]
[SourceQuality "1"]
[TimeControl "5400+30"]

1. e4 c5 {[%emt 0:09:10]} 2. Nf3 d6 {[%emt 0:00:48]} 3. d4 {[%emt 0:00:15]} cxd4 {[%emt 0:00:13]} 4. Nxd4 Nf6 {[%emt 0:00:16]} 5. Nc3 a6 {[%emt 0:00:14]} 6. Bg5 Nbd7 {[%emt 0:03:46]} 7. f4 h6 {[%emt 0:01:24]} 8. Bh4 e6 {[%emt 0:01:05]} 9. Qf3 Be7 {[%emt 0:04:30]} 10. O-O-O Qc7 {[%emt 0:01:24]} 11. Bd3 Rb8 {[%emt 0:06:26]} 12. f5 e5 {[%emt 0:04:31]} 13. Nde2 b5 {[%emt 0:05:20]} 14. g4 b4 {[%emt 0:03:14]} 15. Bxf6 bxc3 {[%emt 0:03:39]} 16. Bxg7 cxb2+ {[%emt 0:01:00]} 17. Kb1 Rh7 {[%emt 0:00:37]} 18. f6 Bf8 {[%emt 0:01:08]} 19. Bxf8 Nxf8 {[%emt 0:01:58]} 20. Nc3 Be6 {[%emt 0:04:49]} 21. h4 Ng6 {[%emt 0:04:33]} 22. Nd5 Qa5 {[%emt 0:01:06]} 23. Qe3 Rb7 {[%emt 0:09:55]} 24. h5 Nf4 25. c4 Bxd5 26. exd5 Rh8 27. Rhf1 Qc3 28. Rxf4 Kd8 29. Rf2 Kc7 30. Rc2 Qa3 31. c5 Rhb8 32. cxd6+ Kd8 {[%emt 0:23:11]} 33. Qxh6 Qxd6 {[%emt 0:03:16]} 34. Qh8+ Kd7 {[%emt 0:01:38]} 35. Bf5+ 1-0

[Event "360 One Wealth GP-4 2024"]
[Site "Mumbai"]
[Date "2024.03.13"]
[Round "3.1"]
[White "Butala Krish"]
[Black "Kulkarni, Vikramaditya"]
[Result "0-1"]
[ECO "B06"]
[WhiteElo "1659"]
[BlackElo "2192"]
[Annotator "RC"]
[PlyCount "141"]
[EventDate "2024.03.10"]
[EventCountry "IND"]
[SourceTitle "playchess.com"]
[Source "ChessBase"]
[SourceQuality "1"]
[TimeControl "5400+30"]

1. e4 {[%emt 0:00:09]} d6 {[%emt 0:01:01]} 2. d4 {[%emt 0:01:08]} g6 {[%emt 0:00:15]} 3. Bd3 {[%emt 0:01:00]} e5 {[%emt 0:02:17]} 4. d5 {[%emt 0:02:53]} h5 {[%emt 0:15:57]} 5. c4 {[%emt 0:09:05]} Bh6 {[%emt 0:00:51]} 6. Bxh6 {[%emt 0:02:26]} Nxh6 {[%emt 0:00:24]} 7. Nc3 {[%emt 0:00:17]} h4 {[%emt 0:04:32]} 8. f3 {[%emt 0:06:59]} c6 {[%emt 0:22:51]} 9. Qd2 {[%emt 0:07:01]} Na6 {[%emt 0:07:22]} 10. Bc2 {[%emt 0:08:02]} cxd5 {[%emt 0:02:33]} 11. Ba4+ {[%emt 0:04:44]} Kf8 {[%emt 0:00:33]} 12. Nxd5 {[%emt 0:02:33]} Be6 {[%emt 0:00:32]} 13. Rd1 {[%emt 0:03:01]} Kg7 {[%emt 0:05:10]} 14. Bb5 {[%emt 0:05:53]} Bxd5 {[%emt 0:13:21]} 15. Qxd5 {[%emt 0:03:54]} Qa5+ {[%emt 0:09:32]} 16. Kf2 {[%emt 0:01:00]} Qb6+ {[%emt 0:01:00]} 17. Ke2 {[%emt 0:00:51]} Nc5 {[%emt 0:00:44]} 18. Qxd6 {[%emt 0:04:11]} Qxd6 {[%emt 0:00:19]} 19. Rxd6 {[%emt 0:00:05]} a6 {[%emt 0:00:16]} 20. b4 {[%emt 0:00:06]} axb5 {[%emt 0:03:43]} 21. bxc5 {[%emt 0:00:06]} Rxa2+ {[%emt 0:00:10]} 22. Rd2 {[%emt 0:00:06]} Rxd2+ {[%emt 0:01:24]} 23. Kxd2 {[%emt 0:00:28]} Rd8+ {[%emt 0:00:02]} 24. Kc2 {[%emt 0:00:15]} Rc8 {[%emt 0:01:08]} 25. cxb5 {[%emt 0:00:53]} Rxc5+ {[%emt 0:00:04]} 26. Kd2 {[%emt 0:00:16]} Rxb5 {[%emt 0:01:01]} 27. Ne2 {[%emt 0:00:12]} Rb2+ {[%emt 0:00:14]} 28. Kd3 {[%emt 0:00:21]} Ng8 {[%emt 0:01:50]} 29. Rc1 {[%emt 0:01:48]} Ne7 {[%emt 0:00:15]} 30. Rc2 {[%emt 0:01:02]} Rxc2 {[%emt 0:01:49]} 31. Kxc2 {[%emt 0:00:02]} Kf6 {[%emt 0:00:17]} 32. Kc3 {[%emt 0:00:39]} Ke6 {[%emt 0:00:07]} 33. Kc4 {[%emt 0:00:11]} Kd6 {[%emt 0:00:06]} 34. g3 {[%emt 0:02:52]} hxg3 {[%emt 0:01:11]} 35. hxg3 {[%emt 0:00:02]} Kc6 {[%emt 0:00:27]} 36. Nc3 {[%emt 0:05:09]} g5 {[%emt 0:02:28]} 37. Kb4 {[%emt 0:07:20]} Nc8 {[%emt 0:01:01]} 38. Nd5 {[%emt 0:01:09]} f5 {[%emt 0:01:54]} 39. Nf6 {[%emt 0:03:27]} f4 {[%emt 0:00:02]} 40. g4 {[%emt 0:00:36]} Nd6 {[%emt 0:00:20]} 41. Nh7 {[%emt 0:00:06]} Nxe4 {[%emt 0:00:54]} 42. Kc4 {[%emt 0:01:07]} Nd2+ {[%emt 0:00:17]} 43. Kd3 {[%emt 0:00:02]} Nxf3 {[%emt 0:00:10]} 44. Ke4 {[%emt 0:00:04]} Nd2+ {[%emt 0:00:53]} 45. Kd3 {[%emt 0:00:16]} Nf3 {[%emt 0:00:49]} 46. Ke4 {[%emt 0:00:04]} Nh2 {[%emt 0:00:09]} 47. Nxg5 {[%emt 0:00:13]} f3 {[%emt 0:01:01]} 48. Nh3 {[%emt 0:01:49]} Nxg4 {[%emt 0:00:11]} 49. Kxf3 {[%emt 0:00:02]} Nf6 {[%emt 0:00:09]} 50. Ke3 {[%emt 0:00:11]} Kc5 {[%emt 0:00:14]} 51. Nf2 {[%emt 0:00:26]} b5 {[%emt 0:00:35]} 52. Nd3+ {[%emt 0:00:29]} Kd5 {[%emt 0:00:01]} 53. Kd2 {[%emt 0:01:23]} Ne4+ {[%emt 0:00:16]} 54. Kc2 {[%emt 0:00:18]} Nc5 {[%emt 0:00:06]} 55. Nb4+ {[%emt 0:00:25]} Kc4 {[%emt 0:00:02]} 56. Nc6 {[%emt 0:00:10]} e4 {[%emt 0:00:02]} 57. Na5+ {[%emt 0:00:46]} Kd4 {[%emt 0:00:23]} 58. Nc6+ {[%emt 0:00:50]} Kd5 {[%emt 0:00:02]} 59. Nb4+ {[%emt 0:00:12]} Kc4 {[%emt 0:00:19]} 60. Nc6 {[%emt 0:00:13]} b4 {[%emt 0:00:11]} 61. Ne5+ {[%emt 0:00:46]} Kd4 {[%emt 0:00:16]} 62. Nc6+ {[%emt 0:00:05]} Kc4 {[%emt 0:00:01]} 63. Ne5+ {[%emt 0:00:04]} Kd5 {[%emt 0:00:04]} 64. Ng4 {[%emt 0:01:05]} Kd4 {[%emt 0:00:01]} 65. Nh2 {[%emt 0:00:31]} e3 {[%emt 0:00:02]} 66. Nf3+ {[%emt 0:00:06]} Ke4 {[%emt 0:00:05]} 67. Ne1 {[%emt 0:00:03]} b3+ {[%emt 0:00:43]} 68. Kc3 {[%emt 0:00:34]} b2 {[%emt 0:00:02]} 69. Kc2 {[%emt 0:00:21]} Nd3 {[%emt 0:00:01]} 70. Ng2 {[%emt 0:01:04]} e2 {[%emt 0:00:28]} 71. Kc3 {[%emt 0:00:03]} 0-1

[Event "360 One Wealth GP-4 2024"]
[Site "Mumbai"]
[Date "2024.03.13"]
[Round "3.2"]
[White "Iyer Arvind"]
[Black "Pawar Sohum"]
[Result "1-0"]
[ECO "C54"]
[WhiteElo "1897"]
[BlackElo "1657"]
[Annotator "NA RC"]
[PlyCount "117"]
[EventDate "2024.03.10"]
[EventCountry "IND"]
[SourceTitle "playchess.com"]
[Source "ChessBase"]
[SourceQuality "1"]
[TimeControl "5400+30"]

1. e4 {[%emt 0:01:14]} e5 {[%emt 0:00:02]} 2. Nf3 {[%emt 0:00:31]} Nc6 {[%emt 0:00:05]} 3. Bc4 {[%emt 0:00:08]} Bc5 {[%emt 0:00:05]} 4. c3 {[%emt 0:00:05]} Nf6 {[%emt 0:00:04]} 5. d3 {[%emt 0:00:06]} d6 {[%emt 0:00:10]} 6. O-O {[%emt 0:02:06]} a6 {[%emt 0:02:21]} 7. Bb3 {[%emt 0:00:08]} Ba7 {[%emt 0:00:14]} 8. Re1 {[%emt 0:00:58] now scores much better than the old 8.Nbd2.} h6 {[%emt 0:00:57] C54: Giuoco Piano: 4 c3 Nf6, main lines with 5 d4 and 5 d3.} 9. Be3 {[%emt 0:01:32]} Bxe3 {[%emt 0:01:17]} 10. fxe3 {[%emt 0:00:09]} O-O {[%emt 0:01:36]} 11. Nbd2 {[%emt 0:00:42]} Ne7 {[%emt 0:05:11]} 12. Nf1 {[%emt 0:01:37]} Ng6 {[%emt 0:02:27]} 13. Ng3 {[%emt 0:00:32]} c6 {[%emt 0:00:13]} 14. d4 {[%emt 0:14:28]} Qc7 $146 {[%emt 0:07:28]} ({Predecessor:} 14... b5 15. Qd2 Qc7 16. Rad1 c5 17. dxe5 dxe5 18. Qd6 Ra7 19. Qxc7 Rxc7 {1-0 Atabayev,M (2492)-Vallejo Pons,F (2711) Wch Blitz Doha 2016 (6)}) 15. Bc2 {[%emt 0:03:49]} Be6 {[%emt 0:02:05]} 16. Qd2 {[%emt 0:04:06]} Rad8 {[%emt 0:05:55]} 17. Rad1 {[%emt 0:11:06]} Rfe8 {[%emt 0:13:12]} 18. Qe2 {[%emt 0:05:10]} Qc8 {[%emt 0:07:29]} 19. h3 {[%emt 0:10:38]} b5 {[%emt 0:08:34]} 20. a3 {[%emt 0:11:09]} Bc4 {[%emt 0:17:05]} 21. Qf2 {[%emt 0:00:00]} Be6 {[%emt 0:15:51]} 22. Rf1 {[%emt 0:06:32]} c5 {[%emt 0:06:37]} 23. d5 {[%emt 0:00:00]} Bd7 {[%emt 0:00:00]} 24. Nf5 {[%emt 0:00:00]} Bxf5 {[%emt 0:00:00]} 25. exf5 {[%emt 0:00:56]} Nf8 {[%emt 0:00:00]} 26. e4 {[%emt 0:00:11]} b4 {[%emt 0:00:00]} 27. c4 {[%emt 0:00:46]} ({Much weaker is} 27. cxb4 cxb4 28. axb4 Qc4 $11) 27... bxa3 {[%emt 0:00:00]} 28. bxa3 {[%emt 0:00:13]} Qc7 {[%emt 0:00:00]} 29. g4 {[%emt 0:03:23]} Rb8 {[%emt 0:00:00]} 30. Qg3 {[%emt 0:06:39]} Rb2 {[%emt 0:00:00]} 31. Rf2 {[%emt 0:00:28]} Qa5 {[%emt 0:01:55]} 32. g5 {[%emt 0:00:47]} hxg5 {[%emt 0:00:09]} 33. Nxg5 {[%emt 0:00:48] [#]} Reb8 $2 {[%emt 0:02:19]} ({Besser ist} 33... Nh5 $1 $17 {[%cal Rh5g3]} 34. Qg4 Nf4) 34. Rg2 {[%emt 0:08:10]} Ne8 $11 {[%emt 0:01:32]} (34... Nh5 $5 35. Qg4 $8 Nf6 $11 (35... Nf4 36. Ne6 $16)) 35. f6 {[%emt 0:02:19]} Ng6 {[%emt 0:00:04]} 36. Nxf7 Rxc2 37. Nh6+ {[%emt 0:01:45]} Kf8 {[%emt 0:01:13]} 38. fxg7+ {[%emt 0:00:18]} Nxg7 {[%emt 0:00:19]} 39. Rf1+ {[%emt 0:00:18]} Ke7 {[%emt 0:00:23]} 40. Rxc2 {[%emt 0:00:22]} Qa4 {[%emt 0:01:41]} 41. Qxg6 {[%emt 0:00:23]} Qe8 {[%emt 0:01:33]} 42. Qxg7+ {[%emt 0:00:12]} Kd8 {[%emt 0:00:12]} 43. Rf8 {[%emt 0:00:05]} Rb1+ {[%emt 0:00:07]} 44. Kg2 {[%emt 0:00:05]} Qxf8 {[%emt 0:00:16]} 45. Qxf8+ {[%emt 0:00:08]} Kc7 {[%emt 0:00:03]} 46. Qe7+ {[%emt 0:00:11]} Kb6 {[%emt 0:00:21]} 47. Qxd6+ {[%emt 0:00:17]} Ka5 {[%emt 0:00:19]} 48. Qxc5+ {[%emt 0:00:32]} Ka4 {[%emt 0:00:06]} 49. Qc6+ {[%emt 0:00:17]} Kb3 {[%emt 0:00:23]} 50. Rf2 {[%emt 0:00:19]} Re1 {[%emt 0:00:16]} 51. Qb6+ {[%emt 0:00:08]} Kxc4 {[%emt 0:00:12]} 52. Qb4+ {[%emt 0:01:00]} Kd3 {[%emt 0:00:04]} 53. Rd2+ {[%emt 0:00:05]} Ke3 {[%emt 0:00:20]} 54. Ng4+ {[%emt 0:00:05]} Kf4 {[%emt 0:00:11]} 55. Rf2+ {[%emt 0:00:01]} Kg5 {[%emt 0:00:15]} 56. Rf5+ {[%emt 0:00:23]} Kg6 {[%emt 0:00:10]} 57. Qd6+ {[%emt 0:00:21]} Kg7 {[%emt 0:00:17]} 58. Qh6+ {[%emt 0:00:13]} Kg8 {[%emt 0:00:15]} 59. Rf8# {[%emt 0:00:02]} 1-0

[Event "360 One Wealth GP-4 2024"]
[Site "Mumbai"]
[Date "2024.03.13"]
[Round "3.3"]
[White "Nirvaan Nirav Shah"]
[Black "Arnav Mahesh Koli"]
[Result "0-1"]
[ECO "B22"]
[WhiteElo "1625"]
[BlackElo "1857"]
[Annotator "NA RC"]
[PlyCount "70"]
[EventDate "2024.03.10"]
[EventCountry "IND"]
[SourceTitle "playchess.com"]
[Source "ChessBase"]
[SourceQuality "1"]
[TimeControl "5400+30"]

1. e4 {[%emt 0:00:09]} c5 {[%emt 0:00:02]} 2. c3 {[%emt 0:00:09]} d5 {[%emt 0:01:56]} 3. exd5 {[%emt 0:00:21]} Qxd5 {[%emt 0:00:03]} 4. d4 {[%emt 0:00:22]} Nc6 {[%emt 0:00:42]} 5. Nf3 {[%emt 0:00:45]} Bf5 {[%emt 0:04:20]} 6. Be3 {[%emt 0:02:26]} cxd4 {[%emt 0:04:10] B22: Sicilian: 2 c3.} 7. Nxd4 {[%emt 0:06:51]} Rd8 {[%emt 0:07:57]} 8. Qb3 {[%emt 0:07:33]} Nxd4 {[%emt 0:06:13]} 9. Bxd4 {[%emt 0:04:09]} a6 {[%emt 0:14:49]} 10. Qxd5 {[%emt 0:02:45]} Rxd5 {[%emt 0:00:03]} 11. Bc4 {[%emt 0:07:18]} Rd7 {[%emt 0:00:12]} 12. a4 {[%emt 0:00:29]} e5 {[%emt 0:00:51]} 13. Be3 {[%emt 0:01:47]} Nf6 {[%emt 0:01:18]} 14. O-O {[%emt 0:04:17]} Nd5 {[%emt 0:04:48]} 15. Bc1 {[%emt 0:05:47]} Be7 {[%emt 0:04:42]} 16. Re1 {[%emt 0:01:42]} f6 {[%emt 0:02:09]} 17. Nd2 {[%emt 0:04:01]} O-O {[%emt 0:06:10]} 18. Nf1 {[%emt 0:02:02]} Be6 {[%emt 0:02:25]} 19. Ne3 {[%emt 0:07:47]} Nc7 {[%emt 0:02:05]} 20. Bxe6+ {[%emt 0:04:29]} Nxe6 {[%emt 0:00:32]} 21. Nf5 {[%emt 0:08:54]} Bc5 {[%emt 0:00:45]} 22. Be3 {[%emt 0:00:48]} Rfd8 {[%emt 0:00:48]} 23. Bxc5 {[%emt 0:01:44]} Nxc5 {[%emt 0:00:08]} 24. b4 {[%emt 0:00:32]} Nd3 {[%emt 0:00:15]} 25. Red1 {[%emt 0:00:38]} Nf4 {[%emt 0:02:24]} 26. Rxd7 {[%emt 0:05:20]} Rxd7 {[%emt 0:00:02]} 27. Kf1 {[%emt 0:00:30]} Kf7 {[%emt 0:01:46]} 28. Ne3 {[%emt 0:02:58]} Ke6 {[%emt 0:01:49]} 29. g3 {[%emt 0:02:31]} Nd3 {[%emt 0:02:18]} 30. Ke2 {[%emt 0:02:04]} e4 {[%emt 0:00:32]} 31. Rb1 {[%emt 0:01:53]} Rc7 {[%emt 0:07:50]} (31... f5 $15) 32. c4 {[%emt 0:02:29]} Ne5 {[%emt 0:00:44]} 33. Rc1 {[%emt 0:01:37]} b5 $11 {[%emt 0:01:09]} 34. c5 {[%emt 0:03:54]} Nd3 {[%emt 0:01:04]} 35. Nc2 {[%emt 0:01:48]} Nxc1+ {[%emt 0:00:10]} 0-1

[Event "360 One Wealth GP-4 2024"]
[Site "Mumbai"]
[Date "2024.03.13"]
[Round "3.4"]
[White "Yuti Mayur Patel"]
[Black "Boricha Yohan"]
[Result "0-1"]
[ECO "B22"]
[WhiteElo "1621"]
[BlackElo "1840"]
[Annotator "NA RC"]
[PlyCount "122"]
[EventDate "2024.03.10"]
[EventCountry "IND"]
[SourceTitle "playchess.com"]
[Source "ChessBase"]
[SourceQuality "1"]
[TimeControl "5400+30"]

1. e4 {[%emt 0:00:05]} c5 {[%emt 0:00:09]} 2. c3 {[%emt 0:00:42]} d5 {[%emt 0:00:08]} 3. exd5 {[%emt 0:00:12]} Qxd5 {[%emt 0:00:02]} 4. d4 {[%emt 0:00:32]} Nc6 {[%emt 0:00:07]} 5. Nf3 {[%emt 0:01:10]} Bf5 {[%emt 0:00:07]} 6. Be2 {[%emt 0:06:16] B22: Sicilian: 2 c3.} cxd4 {[%emt 0:18:48]} 7. cxd4 {[%emt 0:01:04]} Bxb1 {[%emt 0:02:41]} 8. Rxb1 {[%emt 0:00:11]} Qxa2 {[%emt 0:00:50]} 9. Be3 {[%emt 0:03:11]} e6 {[%emt 0:01:20]} 10. O-O {[%emt 0:00:45]} Nf6 {[%emt 0:01:47]} 11. Ne5 {[%emt 0:07:08]} Qa5 $1 {[%emt 0:20:23]} 12. Ra1 {[%emt 0:14:04]} Qb4 {[%emt 0:09:00]} 13. Nxc6 {[%emt 0:04:23]} bxc6 {[%emt 0:00:13]} 14. Qc2 {[%emt 0:00:55]} Bd6 {[%emt 0:14:51]} 15. Qxc6+ {[%emt 0:01:56]} Ke7 {[%emt 0:00:00]} 16. Bf3 {[%emt 0:08:59]} a5 {[%emt 0:00:50]} 17. Rfb1 {[%emt 0:09:41]} Rac8 {[%emt 0:01:36]} 18. Qa6 {[%emt 0:01:35]} Bc7 {[%emt 0:02:08]} ({Black should play} 18... Rc2 $14) 19. Rc1 {[%emt 0:08:49]} Qb6 {[%emt 0:02:00] [#]} 20. Bb7 $1 {[%emt 0:03:47]} Rb8 {[%emt 0:00:24]} 21. Qxb6 {[%emt 0:04:22]} Bxb6 {[%emt 0:00:02]} 22. Ba6 {[%emt 0:01:53]} Nd5 {[%emt 0:02:19]} 23. Be2 {[%emt 0:04:30]} Rhd8 {[%emt 0:02:52]} 24. Bd2 {[%emt 0:04:33]} (24. Bc4 $11) 24... Bxd4 {[%emt 0:02:17]} 25. Bxa5 {[%emt 0:00:33]} Rdc8 {[%emt 0:00:21]} 26. Rxc8 {[%emt 0:01:12]} Rxc8 {[%emt 0:00:01]} 27. Bd3 {[%emt 0:01:38]} Bxb2 {[%emt 0:02:51]} 28. Rb1 {[%emt 0:00:32]} Bc3 {[%emt 0:01:37]} 29. Rb7+ {[%emt 0:02:39]} Kf6 {[%emt 0:00:19]} 30. Bxc3+ {[%emt 0:00:34]} Rxc3 {[%emt 0:00:11]} 31. Bf1 {[%emt 0:00:38]} h5 {[%emt 0:00:32]} 32. g3 {[%emt 0:00:18]} Rc2 {[%emt 0:02:11]} 33. Bb5 {[%emt 0:01:33]} g5 {[%emt 0:01:44]} 34. Be8 {[%emt 0:00:29]} Ne7 {[%emt 0:00:47]} 35. Rb4 {[%emt 0:01:17]} Nd5 {[%emt 0:01:06]} 36. Rb7 {[%emt 0:00:05]} Nc7 {[%emt 0:00:05]} 37. Ba4 {[%emt 0:00:30]} Rc4 {[%emt 0:00:50]} 38. Bb3 {[%emt 0:00:21]} Rc3 {[%emt 0:00:08]} 39. Kg2 {[%emt 0:00:18]} Nd5 {[%emt 0:00:58]} 40. Ba4 {[%emt 0:00:58]} Ne7 {[%emt 0:00:22]} 41. Bb3 {[%emt 0:01:12]} Nf5 {[%emt 0:01:07]} 42. Ba4 {[%emt 0:00:59]} g4 {[%emt 0:00:38]} 43. Rb4 {[%emt 0:00:49]} Kg5 {[%emt 0:00:25]} 44. h3 {[%emt 0:01:00]} gxh3+ {[%emt 0:00:21]} 45. Kxh3 {[%emt 0:00:00]} Nh6 {[%emt 0:02:18]} 46. Bd1 $15 {[%emt 0:01:35]} Rc5 {[%emt 0:01:53]} 47. Rf4 {[%emt 0:02:06]} f5 {[%emt 0:00:43]} 48. Rb4 {[%emt 0:00:53]} Rc1 {[%emt 0:00:38]} 49. Bb3 {[%emt 0:00:21]} Rb1 {[%emt 0:01:34]} 50. f3 {[%emt 0:00:52]} Rb2 {[%emt 0:00:54]} 51. Rb6 {[%emt 0:00:17]} e5 {[%emt 0:02:42]} 52. Rb8 {[%emt 0:01:03]} Ng4 {[%emt 0:00:31]} 53. Rg8+ {[%emt 0:00:36]} Kf6 {[%emt 0:00:24]} 54. Rf8+ {[%emt 0:00:07]} Kg7 {[%emt 0:00:49]} 55. Rg8+ {[%emt 0:00:16]} Kh7 {[%emt 0:00:19]} 56. fxg4 {[%emt 0:00:55]} hxg4+ {[%emt 0:00:16]} 57. Kh4 {[%emt 0:00:05]} Rxb3 {[%emt 0:00:05]} 58. Rg5 {[%emt 0:00:16]} Rf3 {[%emt 0:00:24]} 59. Rh5+ {[%emt 0:00:21]} Kg7 {[%emt 0:01:28]} 60. Rg5+ {[%emt 0:00:06]} Kf7 {[%emt 0:00:13]} 61. Rh5 {[%emt 0:00:09]} e4 {[%emt 0:00:34]} 0-1